Cogmind - Beta 16 @@@ ROGUE MODE // 2025.10.30 @ 00:38:49 Player: ktur Result: Destroyed by Triborg with Siege Cannon Performance ------------- Evolutions (0) 0 Regions Visited (4) 800 Robots Destroyed (23) 115 Value Destroyed (667) 667 Prototype IDs (13) 260 Alien Tech Used (0) 0 Bonus (90) 90 TOTAL SCORE: 1932 Bonus ------- Follower Combat Kills 186 Friendly Fire -96 Cogmind --------- Core Integrity 0/250 Matter 267/300 Energy 80/100 System Corruption 0% Temperature Cool (19) Movement Treading (145) Location -7/Scraptown Parts ------- > --- POWER (1) -------- (None) > --- PROPULSION (2) --- Advanced Treads > --- UTILITY (2) ------ Large Storage Unit > --- WEAPON (2) ------- (None) > --- INVENTORY (15) --- Light Deuterium Engine Light Treads Cargo Legs Armored Huge Wheel Huge Storage Unit Hacking Suite CPS Tube (2) Multitool Power Maul Greatsword Peak State ------------ > --- POWER ------------ Subdweller Power Source > --- PROPULSION ------- Improved Treads Improved Treads > --- UTILITY ---------- Huge Storage Unit V3-11A's Pendant > --- WEAPON ----------- Medium Laser Power Maul > --- INVENTORY -------- Cargo Legs Subdweller Monowheel Large Storage Unit Subdweller Optics Scrap Shield Subdweller Laser Subdweller Shrapnel Launcher Multitool SUBCON Basin [Rating: 36] Favorites ----------- Power Subdweller Power Source Engine Subdweller Power Source Power Core Light Nuclear Core Propulsion Light Treads Treads Light Treads Wheel Compact Wheel Utility Huge Storage Unit Device V3-11A's Pendant Storage Huge Storage Unit Protection Hardened Light Armor Plating Weapon Medium Laser Energy Gun Medium Laser Ballistic Gun Assault Rifle Launcher Subdweller Shrapnel Launcher Impact Weapon Heavy Hammer Build | -11 -10 -10 -7 -7 ------- Run | Yrd Mat Sub Rec Scr Slots Evolved . | . . . . . Power . | . . . . . Propulsion . | . . . . . Utility . | . . . . . Weapon . | . . . . . Parts Attached 29 | 6 10 7 1 5 Power 6 | 1 2 2 . 1 Engine 4 | 1 2 1 . . Core 2 | . . 1 . 1 Reactor . | . . . . . Propulsion 8 | 2 3 2 . 1 Treads 7 | 2 2 2 . 1 Leg . | . . . . . Wheel 1 | . 1 . . . Hover . | . . . . . Flight . | . . . . . Utility 6 | 1 2 2 . 1 Device 1 | . . 1 . . Storage 3 | 1 1 1 . . Processor . | . . . . . Hackware . | . . . . . Protection 2 | . 1 . . 1 Artifact . | . . . . . Weapon 9 | 2 3 1 1 2 Energy Gun 2 | . 2 . . . Energy Cannon . | . . . . . Ballistic Gun 4 | 2 1 . . 1 Ballistic Cannon . | . . . . . Launcher 1 | . . . . 1 Special Weapon . | . . . . . Impact Weapon 2 | . . 1 1 . Slashing Weapon . | . . . . . Piercing Weapon . | . . . . . Special Melee Weapon . | . . . . . Unidentified Prototypes 1 | . . 1 . . Parts Lost 8 | . 5 . . 3 Power 2 | . 1 . . 1 Propulsion 1 | . 1 . . . Utility 2 | . 1 . . 1 Weapon 3 | . 2 . . 1 Highest Loss Streak 4 | . 4 . . 3 To Critical Strikes . | . . . . . Average Backups 13 | 2 9 17 8 9 Power 1 | . 1 1 . . Propulsion 3 | . 2 4 2 2 Utility 3 | . 1 3 3 2 Weapon 5 | . 4 6 2 2 Tool/Special . | . . . . . Unused Backups 23 | . 2 9 . 12 Power 1 | . . . . 1 Propulsion 5 | . 1 . . 4 Utility 5 | . . 2 . 3 Weapon 10 | . 1 7 . 2 Tool/Special 2 | . . . . 2 Average Slot Usage (%) 96 | . 86 99 100 93 Engine 13 | . 13 13 14 12 Treads 27 | . 25 28 28 28 Device 9 | . . 13 14 4 Storage 14 | . 14 14 14 14 Protection 1 | . 3 . . 3 Energy Gun 13 | . 8 13 14 13 Ballistic Gun 3 | . 19 1 . 2 Impact Weapon 10 | . . 12 14 11 Peak Build Rating 36 | 6 9 34 36 36 Average Rating 21 | 4 6 19 35 28 On Entrance 16 | . 6 8 34 36 Avg Prop Armor Cover (%) 13 | . 13 . . . Naked Turns . | . . . . . Heaviest Build 91 | 12 30 91 91 91 Greatest Support 46 | 40 43 46 46 46 Greatest Overweight (x) 7 | . 7 2 1 1 Average Overweight (x) . | . . 1 1 . Largest Inventory Capacity 25 | 8 15 25 25 25 Average Capacity 22 | 6 14 23 25 22 Most Carried 25 | 4 15 25 25 25 Average Carried 20 | 2 9 23 25 20 Final Capacity 25 | 8 15 25 25 15 Final Carried 25 | 4 15 25 25 13 Class Distribution -------------------- 100% | Mutant Dominant Class ---------------- Mutant | -10/Materials Mutant | -10/Subcaves Mutant | -7/Recycling Mutant | -7/Scraptown Resources | -11 -10 -10 -7 -7 ----------- Run | Yrd Mat Sub Rec Scr Matter Collected 954 | 212 456 232 10 44 Remotely . | . . . . . Salvage Created 1175 | . 596 171 155 253 Parts 56 | . 28 6 6 16 Haulers Intercepted 2 | . 2 . . . Recyclers Shooed . | . . . . . Parts Field Recycled . | . . . . . Retrieved Matter . | . . . . . Parts Self-Destructed 14 | . . 14 . . Prevented . | . . . . . Parts Restored . | . . . . . Kills | -11 -10 -10 -7 -7 ------- Run | Yrd Mat Sub Rec Scr Combat Hostiles Destroyed 16 | . 11 . . 5 Guns 11 | . 11 . . . AOE 5 | . . . . 5 Classes Destroyed 11 | . 4 1 2 4 Builder 1 | . . . 1 . Hauler 2 | . 2 . . . Recycler 2 | . . . 2 . Operator 1 | . 1 . . . Watcher 1 | . 1 . . . Grunt 11 | . 11 . . . Artisan 1 | . . 1 . . Bolteater 1 | . . . . 1 Ranger 1 | . . . . 1 Guru 2 | . . . . 2 Elite 1 | . . . . 1 Best Kill Streak 5 | . 3 . 2 5 Combat Bots Only 5 | . 3 . . 5 Max Kills in Single Turn 5 | . 1 1 1 5 Gunslinging . | . . . . . Exploded 5 | . . . . 5 Melee . | . . . . . Uniques/NPCs Destroyed . | . . . . . Combat | -11 -10 -10 -7 -7 -------- Run | Yrd Mat Sub Rec Scr Hostile Shots Fired 176 | . 64 18 . 94 Missed 45 | . 11 7 . 27 Hits 131 | . 53 11 . 67 Melee 29 | . . . . 29 Projectile 102 | . 53 11 . 38 Critical Strikes 2 | . . . . 2 Damage Taken 1639 | . 670 145 . 824 Core 290 | . 82 7 . 201 Absorbed by Shields . | . . . . . Regen/Repaired (Parts) 129 | . 129 . . . Core Remaining (%) 100 | 100 . . . . Volleys Fired 74 | . 68 2 . 4 Largest 2 | . 2 2 . 2 Hottest 100 | . 100 70 . 80 Shots Fired 144 | . 133 4 . 7 Gun 143 | . 133 4 . 6 Cannon . | . . . . . Launcher 1 | . . . . 1 Special . | . . . . . Kinetic 97 | . 91 2 . 4 Thermal 47 | . 42 2 . 3 Explosive . | . . . . . Electromagnetic . | . . . . . Robot Hit Streak 12 | . 12 8 . 10 Robot Miss Streak 3 | . 3 . . 2 Penetration Max . | . . . . . Secondary Targets . | . . . . . Shots Hit Robots 113 | . 93 11 5 4 Core Hits 50 | . 31 2 2 15 Critical Kills . | . . . . . Critical Parts Destroyed 1 | . . . 1 . Critical Strikes 6 | . 3 1 1 1 Burn 4 | . 3 . . 1 Smash 2 | . . 1 1 . Melee Attacks 52 | . . 47 5 . Impact 52 | . . 47 5 . Slashing . | . . . . . Piercing . | . . . . . Sneak Attacks 4 | . . . 4 . Combat Hostiles . | . . . . . Follow-up Attacks . | . . . . . Damage Inflicted 2889 | . 1190 688 468 543 Guns 1252 | . 1163 48 . 41 Cannons . | . . . . . Explosions 499 | . . . . 499 Melee 1108 | . . 640 468 . Ramming 30 | . 27 . . 3 Kinetic 1317 | . 775 23 . 519 Thermal 434 | . 388 25 . 21 Explosive . | . . . . . Electromagnetic . | . . . . . Impact 1108 | . . 640 468 . Slashing . | . . . . . Piercing . | . . . . . Highest Corruption . | . . . . . Average Corruption . | . . . . . Corruption Purged . | . . . . . Corruption Blocked . | . . . . . Overload Shots . | . . . . . Overflow Damage 328 | . . 120 199 9 Projectiles . | . . . . . Explosions 9 | . . . . 9 Melee 319 | . . 120 199 . Knockbacks 5 | . . 4 1 . Impact 5 | . . 4 1 . Kinetic . | . . . . . Secondary . | . . . . . Self-Inflicted Damage 25 | . 6 . . 19 Shots 1 | . . . . 1 Rammed 8 | 1 6 . . 1 Targets Rammed 8 | 1 6 . . 1 Kicked . | . . . . . Crushed . | . . . . . Highest Temperature 288 | . 288 . . 71 Average Temperature 59 | . 62 . . 36 Received Heat Transfer 474 | . 384 42 . 48 Siege Activations . | . . . . . Martial Activations . | . . . . . Shielding Activations . | . . . . . Robots Disrupted . | . . . . . Combat Hostiles . | . . . . . Robots Corrupted 2 | . . 2 . . Combat Hostiles 2 | . . 2 . . Parts Fried 2 | . . 1 1 . Impact Corruptions 6 | . . 4 2 . Robots Melted 1 | . 1 . . . Combat Hostiles . | . . . . . Parts Melted 3 | . 2 . . 1 Heat Transferred 1591 | . 1369 74 . 148 Parts Sabotaged . | . . . . . Parts Stolen 4 | . . . . 4 Parts Stripped . | . . . . . Power Chain Reactions . | . . . . . Alert | -11 -10 -10 -7 -7 ------- Run | Yrd Mat Sub Rec Scr Maximum Alert Level . | . . . . . Low Security (%) 100 | 100 100 . 100 . Level 1 . | . . . . . Level 2 . | . . . . . Level 3 . | . . . . . Level 4 . | . . . . . Level 5 . | . . . . . High Security . | . . . . . Max Security . | . . . . . Peak Influence 121 | . 121 . 40 . Initial . | . . . . . Average 19 | . 28 . 5 . Influence Increases 741 | . 355 270 116 . Destroy 0b10 Robot/C 440 | . 220 160 60 . Destroy 0b10 Robot/NC 35 | . 20 . 15 . Destroy Leader 76 | . 66 10 . . Allied During Kill 65 | . . 40 25 . Successful Hack 17 | . 17 . . . Disable Machine 15 | . . . 15 . Destroy Structure 3 | . 2 . 1 . Lose Combat Pursuer 90 | . 30 60 . . Influence Decreases 741 | . 355 270 116 . Time Decay 621 | . 320 234 67 . Lost Part 35 | . 35 . . . Lost Ally 85 | . . 36 49 . Squads Dispatched 4 | . 4 . . . Investigation 1 | . 1 . . . Extermination . | . . . . . Reinforcement 3 | . 3 . . . Assault . | . . . . . Garrison . | . . . . . Intercept . | . . . . . Searches Triggered . | . . . . . Construction Impeded . | . . . . . Haulers Reinforced . | . . . . . Active Scanning Responses . | . . . . . Cargo Convoy Interrupts . | . . . . . Stealth | -11 -10 -10 -7 -7 --------- Run | Yrd Mat Sub Rec Scr Distress Signals 2 | . 2 . . . Communications Jammed . | . . . . . Distress Signals . | . . . . . Times Spotted 59 | . 19 20 3 17 Peak Tracking Total 17 | . 4 3 3 17 Tactical Retreats 2 | . 1 1 . . Traps | -11 -10 -10 -7 -7 ------- Run | Yrd Mat Sub Rec Scr Traps Triggered 1 | . 1 . . . Indirectly . | . . . . . Trap Hack Attempts . | . . . . . Triggered . | . . . . . Disarmed . | . . . . . Reprogrammed . | . . . . . Reused . | . . . . . Traps Extracted . | . . . . . Installed . | . . . . . Triggered . | . . . . . Machines | -11 -10 -10 -7 -7 ---------- Run | Yrd Mat Sub Rec Scr Machines Disabled 4 | . . 3 1 . Max in Single Turn 1 | . . 1 1 . Machines Repaired . | . . . . . Machines Dismantled . | . . . . . Machines Sabotaged . | . . . . . Overloaded Fab Kills . | . . . . . Hacking | -11 -10 -10 -7 -7 --------- Run | Yrd Mat Sub Rec Scr Machines Accessed 7 | . 3 4 . . Terminals 2 | . 2 . . . Fabricators . | . . . . . Repair Stations 1 | . 1 . . . Recycling Units . | . . . . . Scanalyzers . | . . . . . Garrison Access . | . . . . . Total Hacks 15 | . 7 8 . . Successful 13 | . 5 8 . . Failed 2 | . 2 . . . Catastrophic . | . . . . . Database Lockouts . | . . . . . Manual 3 | . 3 . . . Terminals 3 | . 3 . . . Fabricators . | . . . . . Repair Stations 4 | . 4 . . . Recycling Units . | . . . . . Scanalyzers . | . . . . . Garrison Access . | . . . . . Terminal Hacks 9 | . 1 8 . . Record 5 | . . 5 . . Open Door 1 | . . 1 . . Zone Layout 1 | . 1 . . . Proto ID Catalog 1 | . . 1 . . Release Object 1 | . . 1 . . Fabricator Hacks . | . . . . . Repair Station Hacks 3 | . 3 . . . Scan Component 2 | . 2 . . . Repair 1 | . 1 . . . Recycling Unit Hacks . | . . . . . Scanalyzer . | . . . . . Garrison Access Hacks . | . . . . . Unauthorized Hacks 1 | . 1 . . . Terminals 1 | . 1 . . . Assimilate 1 | . 1 . . . Fabricators . | . . . . . Repair Stations . | . . . . . Recycling Units . | . . . . . Scanalyzers . | . . . . . Garrison Access . | . . . . . Data Cores Recovered . | . . . . . Used . | . . . . . Hacking Detections 3 | . 3 . . . Full Trace Events 1 | . 1 . . . Feedback Events . | . . . . . Feedback Blocked . | . . . . . Robot Schematics Acquired . | . . . . . Robots Built . | . . . . . Authchips . | . . . . . Time . | . . . . . Total Robot Build Rating . | . . . . . Part Schematics Acquired . | . . . . . Parts Built . | . . . . . Authchips . | . . . . . Time . | . . . . . Total Part Build Rating . | . . . . . Part Studies Acquired . | . . . . . Parts Repaired 1 | . 1 . . . Time 36 | . 36 . . . Parts Recycled . | . . . . . Recycled Matter . | . . . . . Retrieved Matter . | . . . . . Retrieved Components . | . . . . . Parts Scanalyzed . | . . . . . Part Schematics Acquired . | . . . . . Parts Damaged . | . . . . . Bothacking | -11 -10 -10 -7 -7 ------------ Run | Yrd Mat Sub Rec Scr Used RIF Installer . | . . . . . Robots Hacked . | . . . . . Non-combat . | . . . . . Combat . | . . . . . Robot Hacks Applied . | . . . . . Relay Couplers Released . | . . . . . Fabnet Peak Effective % . | . . . . . Robots Rewired . | . . . . . Allies Hacked . | . . . . . Hacks Repelled . | . . . . . Allies | -11 -10 -10 -7 -7 -------- Run | Yrd Mat Sub Rec Scr Total Allies 13 | . . 13 . . Largest Group 9 | . . 9 9 5 Highest-Rated Group 171 | . . 171 171 95 Highest-Rated Ally 19 | . . 19 19 19 Total Orders . | . . . . . Ally Attacks 107 | . . 58 38 11 Total Damage 1571 | . . 697 691 183 Kills 13 | . . 9 3 1 Allies Corrupted . | . . . . . Allies Melted . | . . . . . Intel | -11 -10 -10 -7 -7 ------- Run | Yrd Mat Sub Rec Scr Active Infowar (turns) . | . . . . . Robot Analysis Total . | . . . . . Derelict Logs Recovered 7 | . . 3 . 4 Drone Launches . | . . . . . Drone Recoveries . | . . . . . Exploration | -11 -10 -10 -7 -7 ------------- Run | Yrd Mat Sub Rec Scr Turns Passed 8671 | 73 1070 4934 519 2075 Spaces Moved 3469 | 41 468 1787 204 969 Core 8 | 6 2 . . . Treads 3388 | 35 393 1787 204 969 Legs . | . . . . . Wheels 73 | . 73 . . . Hover . | . . . . . Flight . | . . . . . Fastest Speed 50 | 50 115 160 240 160 Average Speed 232 | 143 157 265 240 210 Slowest Speed 400 | 160 400 320 240 240 Overloaded Moves . | . . . . . Propulsion Burnouts . | . . . . . Robots Hopped . | . . . . . Potential Cave-ins . | . . . . . Cave-ins Triggered . | . . . . . Exploration Rate (%) 61 | 4 86 94 71 54 Regions Visited 4 Branch Regions 3 Pre-discovered Areas 4 | . . 2 . 2 Known Exits Taken . | . . . . . Unknown Exits Taken 4 | 1 1 1 1 . Scrap Searched 9 | . . 6 . 3 Spaces Dug 2 | . . 2 . . Terrain Destroyed 10 | . . 2 . 8 Melee 2 | . . 2 . . Projectile 1 | . . . . 1 AOE 7 | . . . . 7 Terrain Rammed . | . . . . . Walls Destroyed . | . . . . . Machines Disabled . | . . . . . Actions | -11 -10 -10 -7 -7 --------- Run | Yrd Mat Sub Rec Scr Total 3841 | 53 665 1898 224 1001 Wait 132 | . 90 23 14 5 Move 3465 | 40 467 1786 203 969 Hop . | . . . . . Pick Up 43 | 6 15 13 . 9 Fast Attach 14 | 4 7 1 1 1 Attach 13 | 2 4 4 . 3 Detach 2 | . 2 . . . Swap 7 | . 2 3 . 2 Drop 30 | . 4 19 1 6 Fire 74 | . 68 2 . 4 Melee 52 | . . 47 5 . Ram 1 | . 1 . . . Kick . | . . . . . Crush 7 | 1 5 . . 1 Escape Stasis . | . . . . . Rewire . | . . . . . Trap . | . . . . . Miscellaneous 1 | . . . . 1 Route ------- -11/Scrapyard -10/Materials (discovered 5 exits: [*Mat x3] / [*Min] / *Sub) -10/Subcaves (discovered 3 exits: [*Mat x2] / [*Rec]) -7/Recycling (discovered 2 exits: [*Fac] / *Scr) -7/Scraptown (discovered 1 exit: [*Fac]) History --------- Turn | Location | Event 8 | -11/Scrapyard | Discovered new exit (range 15) 74 | -11/Scrapyard | Entered Materials 301 | -10/Materials | Build established: Mutant 407 | -10/Materials | Discovered new exit (range 9) 759 | -10/Materials | Discovered new exit (range 5) 811 | -10/Materials | Repaired Broken Lgt. Treads 831 | -10/Materials | Lost 4 parts (1p1n1u1w) 965 | -10/Materials | Discovered new exit (range 11) 1068 | -10/Materials | Discovered new exit (range 16) 1125 | -10/Materials | Discovered new exit (range 6) 1144 | -10/Materials | Entered Subcaves 1175 | -10/Subcaves | Visited triangular shrine 1184 | -10/Subcaves | Found Prototype Device 1184 | -10/Subcaves | Identified V3-11A's Pendant 1189 | -10/Subcaves | Befriended Subdweller 1335 | -10/Subcaves | Ambushed by angry Subdweller bent on revenge 1339 | -10/Subcaves | Befriended Subdweller 2006 | -10/Subcaves | Visited 4L-MR0's lab 2034 | -10/Subcaves | Found Cargo Legs 2147 | -10/Subcaves | Ambushed by Subdwellers from Twisted Machinery 2149 | -10/Subcaves | Befriended Subdweller 2149 | -10/Subcaves | Befriended Subdweller 2164 | -10/Subcaves | Befriended Subdweller 2164 | -10/Subcaves | Befriended Subdweller 2646 | -10/Subcaves | A swath of the cavern ceiling suddenly collapsed 2661 | -10/Subcaves | Learned location of Storage (-7) 2739 | -10/Subcaves | Discovered new exit (range 15) 3229 | -10/Subcaves | Befriended Subdweller 3462 | -10/Subcaves | Discovered new exit (range 14) 3939 | -10/Subcaves | Befriended Subdweller 3944 | -10/Subcaves | Befriended Subdweller 4214 | -10/Subcaves | Befriended Subdweller 4223 | -10/Subcaves | Shifting Twisted Machinery released Piercing Trap 4279 | -10/Subcaves | Befriended Subdweller 4284 | -10/Subcaves | Befriended Subdweller 4310 | -10/Subcaves | Lost 3 allies 4545 | -10/Subcaves | A swath of the cavern ceiling suddenly collapsed 4641 | -10/Subcaves | Found SUBCON Basin 4786 | -10/Subcaves | Learned Materials non-interactive machine intel 4791 | -10/Subcaves | Discovered new exit (range 16) 4918 | -10/Subcaves | Visited Clippyterm 4925 | -10/Subcaves | Learned location of Extension (-6) 4925 | -10/Subcaves | Learned 40 Factory zone layouts 5113 | -10/Subcaves | Shifting Twisted Machinery released Shrapnel Trap 5218 | -10/Subcaves | Shifting Twisted Machinery released Sub. Power Source 5614 | -10/Subcaves | Befriended Subdweller 6078 | -10/Subcaves | Entered Recycling 6078 | -7/Recycling | Accompanied by 9 allies 6184 | -7/Recycling | Lost 4 allies 6491 | -7/Recycling | Discovered new exit (range 8) 6539 | -7/Recycling | Scanned before Scraplab entrance 6573 | -7/Recycling | Entered Scraplab 6594 | -7/Recycling | Discovered new exit (range 2) 6597 | -7/Recycling | Entered Scraptown 6597 | -7/Scraptown | Accompanied by 5 allies 6869 | -7/Scraptown | Turned away by UFD registrar 6902 | -7/Scraptown | Visited Cyclists 6991 | -7/Scraptown | Visited IN-MT5's Study 7013 | -7/Scraptown | Visited Red Mages 7118 | -7/Scraptown | Visited Assassins FH 7212 | -7/Scraptown | Delivered V3-11A's Pendant to T0-NE2 in exchange for information 7646 | -7/Scraptown | Discovered new exit (range 11) 7687 | -7/Scraptown | Scanned Subdweller tech in exchange for log data 7694 | -7/Scraptown | Learned 8 Research zone layouts 7697 | -7/Scraptown | Learned Factory stockpile data 7699 | -7/Scraptown | Learned Factory terminal intel 7701 | -7/Scraptown | Learned location of Quarantine (-3) 7759 | -7/Scraptown | Visited Spacefarers 7817 | -7/Scraptown | Visited Fellowship of the Rings 8628 | -7/Scraptown | Released subatomizers from SUBCON Basin 8649 | -7/Scraptown | Attacked by Scraptown defenders 8664 | -7/Scraptown | Core integrity fell below 50% 8672 | -7/Scraptown | Destroyed by Triborg with Siege Cannon Last Messages --------------- 08668_ UQ-2C2(r) follow-up attacks with Ripteeth. 08668_ Bolt penetrates 47-OU3(r). 08669_ Hvy. Machine Gun ripped off. 08670_ Bolt penetrates VU-6BV(p). 08670_ Penetrated by Siege Slug. 08670_ Hrd. Light Armor Plating destroyed. 08670_ Machine disabled. 08670_ Target Analyzer melted. 08670_ UN-2MC(E) destroyed. 08670_ VU-6BV(p) destroyed. 08670_ 19-8LY(h) destroyed. 08670_ 09-OR3(p) destroyed. 08670_ Destroyed Ripteeth. 08670_ EC-OGY(r) destroyed. 08671_ Penetrated by Bolt. 08672_ 3V-DUE(h): "To scrap with you!" 08672_ 56-4ON(r) follow-up attacks with Ripteeth. 08672_ Imp. Treads ripped off. 08672_ Penetrated by Siege Slug. 08672_ Sub. Shrapnel Launcher destroyed. Map ----- +----------------------------------------------------+ | """ # #????########???# #??????????? | | # #??#?#!!!!!!#"""# #??????????? | | " " # #??#"#!!! #"""# #??????????? | | """" # #??#"#+######"""# ###????????? | | ####### #??#"" """""" ""# ""#"#??????? | | ??????# #??#"" " "# """"#??????? | | ??????# #??#"" """ "# ""###??????? | | ??????# #??#" """ ""# ###????????? | | ####### #??#"""" " " ""# #####??????? | | # #??#""" """# "??????? | | # #??# """ ""# "??????? | | # #??# ""# "??????? | | # #??# "# "??????? | | # ########;### #### "??????? | | # % "??????? | | "??????? | | # "??????? | | # "??????? | | ####### x !* &%& "??????? | | # !%&[j!TT% #"??????? | | =[%=%TT #???????? | | # *%h%&%j #???????? | | ###### ######## ;;!h ; ####### ####???????? | | #?# ## =j& #?# #??????????? | | # #?# ## ; rrr """#?# #??????????? | | # #?#" "#??# @r%=" #?# #??????????? | | # #?#" "#??#" %/ " #?# #??????????? | | # #?#" "#??#"""% " #?# #??????????? | | # #?##""""""""""##??#"" "k #?# #??????????? | | # #??#" "#???#"k "###?# #??????????? | | # #??## ##???#"k " "???# #??????????? | | # #???# #????#"""""""#???# #??????????? | | # #???##########?????########???# #??????????? | | # #?????????????????????????????# #??????????? | | # #????????????????????????###### #??????????? | | # #??????????????????????"""""""" #??????????? | | # #?????????????????????""" """"" #??????????? | | ##????????????##????"""" " "" #??????????? | | #???????????? ? #??????????? | | ##???###????## ##???"" "" "" " #??????????? | | ## ##???"""""?#""" "#?????""""""""" #??????????? | | ?###????"" ""?#""" "#????????"""""" #??????????? | | #####???"" "?#""" "#????????###### #??????????? | | """"#??#" ""##"" "#?############# #??????????? | | "#??#"" ""##"" "#?#"""""""""""# #??????????? | | "#??#"" ""##"| "#?#""= ![=/ "# #??????????? | | """"#??#"" ""##" "#?#"" ! ! / "# #??????????? | | #####??#" ""##"" "#?#"" "# #??????????? | | ########"" ""##"" ""###""" """""""# #??????????? | | #??????????? | +----------------------------------------------------+ Best States ------------- Heat Dissipation 25 Energy Generation 14 Energy Capacity 250 Matter Stores 300 Matter Capacity 300 Sight Range 16 Terrain Scan Density 10 Armor Coverage 150 Evasion (%) 40 Recoil Reduction 2 Item Schematics ----------------- None Robot Schematics ------------------ None Fabricated ------------ Nothing Repaired ---------- Lgt. Treads | 7% | -10/Materials | Broken Studied --------- None Alien Tech Used ----------------- None Achievements -------------- SUBSUB Challenges ------------ None Game ------ Seed TargetingSwarmMount Manual? 0 Play Time 00:23:38 Cumulative 819.9 hours Start 2025.10.29 @ 21:09:15 End 2025.10.30 @ 00:38:49 Sessions 2 Manual Loads 0 Difficulty Rogue Special Mode None Game No. 820 Rogue 820 Adventurer 0 Explorer 0 Win Type - Total 39 Types 14/4/11/2/0/0/5/2/1/0 Lore% 96 Gallery% 86 Achievement% 58 Wizard Run 0 Options --------- Layout 0 ASCII 0 Keyboard 0 Movement Numpad Keybinds 0 Fullscreen 1 Font 18/Smallcaps Map View 76x50 Zoom Use 0% Tactical HUD 1 Map Filters NONE Filters NONE Steam 1 RUN: fb09d997-9f3c-4806-a634-fc9e3462f95f